Cogmind - Beta 13 @@@ ROGUE MODE // 2024.07.30 @ 15:37:13 Player: DAFFA Result: Self-destructed Performance ------------- Evolutions (1) 500 Regions Visited (3) 600 Robots Destroyed (25) 125 Value Destroyed (701) 701 Prototype IDs (0) 0 Alien Tech Used (0) 0 Bonus (0) 0 TOTAL SCORE: 1926 Bonus ------- None Cogmind --------- Core Integrity 265/400 Matter 297/300 Energy 100/100 System Corruption 1% Temperature Cool (0) Movement Core (100) Ox1 Location -9/Materials Parts ------- > --- POWER (1) -------- (None) > --- PROPULSION (2) --- (None) > --- UTILITY (4) ------ Small Storage Unit Signal Interpreter Terrain Scan Processor > --- WEAPON (2) ------- (None) > --- INVENTORY (8) ---- Improved Ion Engine Improved Heat Sink Cooling System Structural Scanner Improved Targeting Computer Hardened Light Armor Plating Medium Laser Assault Rifle Peak State ------------ > --- POWER ------------ Improved Ion Engine > --- PROPULSION ------- Improved Treads Improved Treads > --- UTILITY ---------- Improved Heat Sink Small Storage Unit Signal Interpreter Terrain Scan Processor > --- WEAPON ----------- Beam Cannon Grenade Launcher > --- INVENTORY -------- Improved Ion Engine Cooling System Structural Scanner Improved Targeting Computer ECM Suite Hardened Light Armor Plating Medium Laser Assault Rifle [Rating: 16] Favorites ----------- Power Light Ion Engine Engine Light Ion Engine Propulsion Aluminum Leg Treads Improved Treads Leg Aluminum Leg Utility Small Storage Unit Device ECM Suite Storage Small Storage Unit Processor Terrain Scan Processor Protection Hardened Light Armor Plating Weapon Medium Laser Energy Gun Medium Laser Energy Cannon Beam Cannon Ballistic Gun Assault Rifle Launcher Grenade Launcher Build | -11 -10 -10 -9 ------- Run | Yrd Mat Min Mat Slots Evolved 2 | . . . 2 Power . | . . . . Propulsion . | . . . . Utility 2 | . . . 2 Weapon . | . . . . Parts Attached 27 | 6 2 8 11 Power 3 | 1 . 1 1 Engine 3 | 1 . 1 1 Core . | . . . . Reactor . | . . . . Propulsion 5 | 2 . 1 2 Treads 2 | . . . 2 Leg 3 | 2 . 1 . Wheel . | . . . . Hover . | . . . . Flight . | . . . . Utility 10 | 1 1 3 5 Device 5 | . 1 1 3 Storage 1 | 1 . . . Processor 2 | . . . 2 Hackware . | . . . . Protection 2 | . . 2 . Artifact . | . . . . Weapon 9 | 2 1 3 3 Energy Gun 2 | 1 . . 1 Energy Cannon 2 | . . 1 1 Ballistic Gun 3 | 1 . 2 . Ballistic Cannon . | . . . . Launcher 2 | . 1 . 1 Special Weapon . | . . . . Impact Weapon . | . . . . Slashing Weapon . | . . . . Piercing Weapon . | . . . . Special Melee Weapon . | . . . . Unidentified Prototypes . | . . . . Parts Lost 8 | . . . 8 Power 1 | . . . 1 Propulsion 3 | . . . 3 Utility 1 | . . . 1 Weapon 3 | . . . 3 Highest Loss Streak 4 | . . . 4 To Critical Strikes . | . . . . Average Slot Usage (%) 98 | . 98 100 96 Engine 12 | . 14 14 11 Treads 2 | . . . 5 Leg 23 | . 28 28 15 Device 8 | . 12 7 10 Storage 12 | . 14 14 11 Processor 6 | . . . 18 Protection 4 | . . 7 3 Energy Gun 9 | . 14 12 2 Energy Cannon 4 | . . 1 10 Ballistic Gun 4 | . 1 6 3 Launcher 7 | . 12 7 4 Naked Turns . | . . . . Heaviest Build 20 | 12 15 18 20 Greatest Support 46 | 20 20 20 46 Greatest Overweight (x) 1 | . . . 1 Average Overweight (x) . | . . . . Largest Inventory Capacity 8 | 8 8 8 8 Average Capacity 7 | 6 8 8 8 Most Carried 8 | 2 4 8 8 Average Carried 5 | . 3 5 7 Final Capacity 8 | 8 8 8 8 Final Carried 8 | 1 4 8 8 Class Distribution -------------------- 100% | Mutant Dominant Class ---------------- Mutant | -10/Materials Mutant | -10/Mines Mutant | -9/Materials Resources | -11 -10 -10 -9 ----------- Run | Yrd Mat Min Mat Matter Collected 672 | 260 69 153 190 Remotely . | . . . . Salvage Created 664 | . 124 164 376 Parts 38 | . 5 8 25 Haulers Intercepted 1 | . 1 . . Recyclers Shooed 2 | . 1 1 . Parts Field Recycled . | . . . . Retrieved Matter . | . . . . Parts Self-Destructed . | . . . . Prevented . | . . . . Kills | -11 -10 -10 -9 ------- Run | Yrd Mat Min Mat Combat Hostiles Destroyed 18 | . 3 7 8 Guns 8 | . 2 4 2 Cannons 4 | . . 2 2 AOE 6 | . 1 1 4 Classes Destroyed 8 | . 2 1 5 Worker 2 | . . . 2 Builder 1 | . . . 1 Hauler 1 | . 1 . . Watcher 3 | . . . 3 Swarmer 3 | . . 3 . Grunt 12 | . 3 4 5 Duelist 1 | . . . 1 Sentry 2 | . . . 2 Best Kill Streak 4 | . 2 3 4 Combat Bots Only 3 | . 2 3 2 Max Kills in Single Turn 2 | . 1 2 2 Gunslinging 1 | . . 1 . Exploded 1 | . 1 1 1 Melee . | . . . . Uniques/NPCs Destroyed . | . . . . Combat | -11 -10 -10 -9 -------- Run | Yrd Mat Min Mat Hostile Shots Fired 127 | . 8 27 92 Missed 35 | . 1 5 29 Damage Taken 1247 | . 131 270 846 Core 192 | . 18 39 135 Absorbed by Shields . | . . . . Core Remaining (%) 88 | 100 . 77 . Volleys Fired 71 | . 16 19 36 Largest 2 | . 2 2 2 Hottest 116 | . 80 80 116 Shots Fired 111 | . 19 36 56 Gun 59 | . 14 27 18 Cannon 35 | . . 6 29 Launcher 17 | . 5 3 9 Special . | . . . . Kinetic 23 | . . 14 9 Thermal 71 | . 14 19 38 Explosive 17 | . 5 3 9 Electromagnetic . | . . . . Robot Hit Streak 11 | . 11 5 8 Robot Miss Streak 4 | . 2 3 4 Penetration Max . | . . . . Secondary Targets 2 | . . 2 . Max Gunslinging Chain 1 | . . 1 . Shots Hit Robots 64 | . 13 18 33 Core Hits 45 | . 9 10 26 Critical Kills . | . . . . Critical Parts Destroyed . | . . . . Critical Strikes 2 | . 1 . 1 Burn 2 | . 1 . 1 Melee Attacks . | . . . . Impact . | . . . . Slashing . | . . . . Piercing . | . . . . Sneak Attacks . | . . . . Combat Hostiles . | . . . . Follow-up Attacks . | . . . . Damage Inflicted 1724 | . 410 416 898 Guns 451 | . 126 172 153 Cannons 421 | . . 52 369 Explosions 852 | . 284 192 376 Melee . | . . . . Ramming . | . . . . Kinetic 138 | . . 83 55 Thermal 734 | . 126 141 467 Explosive 852 | . 284 192 376 Electromagnetic . | . . . . Impact . | . . . . Slashing . | . . . . Piercing . | . . . . Highest Corruption 1 | . . . 1 Average Corruption 1 | . . . 1 Corruption Purged . | . . . . Corruption Blocked . | . . . . Effects 3 | . . . 3 Matter Fused 1 | . . . 1 Heat Flow Errors 1 | . . . 1 Data Loss (minor) 1 | . . . 1 Overload Shots . | . . . . Overflow Damage 20 | . . 2 18 Projectiles 8 | . . . 8 Explosions 12 | . . 2 10 Melee . | . . . . Knockbacks . | . . . . Impact . | . . . . Kinetic . | . . . . Secondary . | . . . . Self-Inflicted Damage 122 | . 46 6 70 Shots 8 | . 3 1 4 Rammed . | . . . . Targets Rammed . | . . . . Kicked . | . . . . Crushed . | . . . . Highest Temperature 264 | . 87 261 264 Average Temperature 83 | . 40 94 97 Received Heat Transfer 414 | . 66 132 216 Effects 3 | . . . 3 Interference 3 | . . . 3 Siege Activations . | . . . . Robots Corrupted . | . . . . Combat Hostiles . | . . . . Parts Fried . | . . . . Impact Corruptions . | . . . . Robots Melted . | . . . . Combat Hostiles . | . . . . Parts Melted 3 | . . 1 2 Heat Transferred 1924 | . 444 370 1110 Parts Sabotaged . | . . . . Parts Stolen . | . . . . Parts Stripped . | . . . . Power Chain Reactions . | . . . . Alert | -11 -10 -10 -9 ------- Run | Yrd Mat Min Mat Peak Influence 307 | . 135 150 307 Initial 52 | . . 52 . Average 86 | . 63 79 114 Maximum Alert Level 1 | . . . 1 Low Security (%) 96 | 100 100 100 90 Level 1 3 | . . . 9 Level 2 . | . . . . Level 3 . | . . . . Level 4 . | . . . . Level 5 . | . . . . High Security . | . . . . Max Security . | . . . . Squads Dispatched 4 | . 1 . 3 Investigation 2 | . . . 2 Extermination . | . . . . Reinforcement 2 | . 1 . 1 Assault . | . . . . Garrison . | . . . . Intercept . | . . . . Searches Triggered . | . . . . Construction Impeded . | . . . . Haulers Reinforced . | . . . . Active Scanning Responses . | . . . . Cargo Convoy Interrupts . | . . . . Stealth | -11 -10 -10 -9 --------- Run | Yrd Mat Min Mat Distress Signals 6 | . 3 . 3 Communications Jammed . | . . . . Distress Signals . | . . . . Times Spotted 45 | . 6 8 31 Peak Tracking Total 13 | . 4 3 13 Tactical Retreats 6 | . 1 1 4 Traps | -11 -10 -10 -9 ------- Run | Yrd Mat Min Mat Traps Triggered 2 | . . . 2 Indirectly . | . . . . Trap Hack Attempts . | . . . . Triggered . | . . . . Disarmed . | . . . . Reprogrammed . | . . . . Reused . | . . . . Traps Extracted . | . . . . Installed . | . . . . Triggered . | . . . . Machines | -11 -10 -10 -9 ---------- Run | Yrd Mat Min Mat Machines Disabled 3 | . . 1 2 Max in Single Turn 1 | . . 1 1 Machines Repaired . | . . . . Machines Dismantled . | . . . . Machines Sabotaged . | . . . . Overloaded Fab Kills . | . . . . Hacking | -11 -10 -10 -9 --------- Run | Yrd Mat Min Mat Machines Accessed 6 | . 2 . 4 Terminals 4 | . 2 . 2 Fabricators . | . . . . Repair Stations . | . . . . Recycling Units . | . . . . Scanalyzers 2 | . . . 2 Garrison Access . | . . . . Total Hacks 14 | . 4 . 10 Successful 9 | . 2 . 7 Failed 5 | . 2 . 3 Catastrophic 1 | . 1 . . Database Lockouts . | . . . . Manual 5 | . 3 . 2 Terminals 8 | . 4 . 4 Fabricators . | . . . . Repair Stations . | . . . . Recycling Units . | . . . . Scanalyzers 6 | . . . 6 Garrison Access . | . . . . Terminal Hacks 3 | . 2 . 1 Record 1 | . 1 . . Branch Access Points 1 | . 1 . . Reinforcement Status 1 | . . . 1 Fabricator Hacks . | . . . . Repair Station Hacks . | . . . . Recycling Unit Hacks . | . . . . Scanalyzer 6 | . . . 6 Insert Component 3 | . . . 3 Analyze 3 | . . . 3 Garrison Access Hacks . | . . . . Unauthorized Hacks . | . . . . Terminals . | . . . . Fabricators . | . . . . Repair Stations . | . . . . Recycling Units . | . . . . Scanalyzers . | . . . . Garrison Access . | . . . . Data Cores Recovered . | . . . . Used . | . . . . Hacking Detections 5 | . 2 . 3 Full Trace Events 1 | . . . 1 Feedback Events . | . . . . Feedback Blocked . | . . . . Robot Schematics Acquired . | . . . . Robots Built . | . . . . Authchips . | . . . . Time . | . . . . Total Robot Build Rating . | . . . . Part Schematics Acquired 2 | . . . 2 Parts Built . | . . . . Authchips . | . . . . Time . | . . . . Total Part Build Rating . | . . . . Parts Repaired . | . . . . Time . | . . . . Parts Recycled . | . . . . Recycled Matter . | . . . . Retrieved Matter . | . . . . Retrieved Components . | . . . . Parts Scanalyzed 3 | . . . 3 Part Schematics Acquired 2 | . . . 2 Parts Damaged . | . . . . Bothacking | -11 -10 -10 -9 ------------ Run | Yrd Mat Min Mat Used RIF Installer . | . . . . Robots Hacked . | . . . . Non-combat . | . . . . Combat . | . . . . Robot Hacks Applied . | . . . . Relay Couplers Released . | . . . . Fabnet Peak Effective % . | . . . . Robots Rewired . | . . . . Allies Hacked . | . . . . Hacks Repelled . | . . . . Allies | -11 -10 -10 -9 -------- Run | Yrd Mat Min Mat Total Allies . | . . . . Largest Group . | . . . . Highest-Rated Group . | . . . . Highest-Rated Ally . | . . . . Total Orders . | . . . . Ally Attacks . | . . . . Total Damage . | . . . . Kills . | . . . . Allies Corrupted . | . . . . Allies Melted . | . . . . Intel | -11 -10 -10 -9 ------- Run | Yrd Mat Min Mat Robot Analysis Total . | . . . . Derelict Logs Recovered 1 | . . 1 . Drone Launches . | . . . . Drone Recoveries . | . . . . Exploration | -11 -10 -10 -9 ------------- Run | Yrd Mat Min Mat Turns Passed 1737 | 65 241 814 617 Spaces Moved 1117 | 52 158 541 366 Core 14 | 14 . . . Treads 82 | . . . 82 Legs 1021 | 38 158 541 284 Wheels . | . . . . Hover . | . . . . Flight . | . . . . Fastest Speed 50 | 50 120 120 120 Average Speed 123 | 101 120 120 134 Slowest Speed 190 | 120 120 120 190 Overloaded Moves . | . . . . Propulsion Burnouts . | . . . . Robots Hopped . | . . . . Cave-ins Triggered . | . . . . Exploration Rate (%) 38 | 3 21 97 34 Regions Visited 3 Branch Regions 1 Pre-discovered Areas . | . . . . Known Exits Taken 1 | . 1 . . Unknown Exits Taken 2 | 1 . 1 . Scrap Searched 1 | . . 1 . Spaces Dug . | . . . . Terrain Destroyed 88 | . 23 20 45 Melee . | . . . . Projectile . | . . . . AOE 88 | . 23 20 45 Terrain Rammed . | . . . . Walls Destroyed . | . . . . Machines Disabled . | . . . . Actions | -11 -10 -10 -9 --------- Run | Yrd Mat Min Mat Total 1355 | 64 190 666 435 Wait 117 | . 11 95 11 Move 1114 | 51 157 540 366 Hop . | . . . . Pick Up 20 | 7 4 4 5 Fast Attach 3 | . . . 3 Attach 10 | 6 1 . 3 Detach 1 | . . . 1 Swap 14 | . 1 8 5 Drop 5 | . . . 5 Fire 71 | . 16 19 36 Melee . | . . . . Ram . | . . . . Kick . | . . . . Crush . | . . . . Escape Stasis . | . . . . Rewire . | . . . . Trap . | . . . . Miscellaneous . | . . . . Route ------- -11/Scrapyard -10/Materials -10/Mines (discovered 2 exits: *Mat x2) -9/Materials History --------- Turn | Location | Event 9 | -11/Scrapyard | Discovered new exit (range 15) 66 | -11/Scrapyard | Entered Materials 107 | -10/Materials | Identified exit to Mines 307 | -10/Materials | Entered Mines 317 | -10/Mines | Build established: Mutant 760 | -10/Mines | Discovered new exit (range 5) 827 | -10/Mines | Learned Materials garrison access intel 1062 | -10/Mines | Discovered new exit (range 8) 1121 | -10/Mines | Entered Materials 1121 | -9/Materials | Evolved 2 slots: Utility x2 1738 | -9/Materials | Self-destructed Last Messages --------------- 01688_ Melee Analysis Suite melted. 01688_ L-31 Rogue destroyed. 01689_ Overheating: System interference. 01689_ Terrain Scan Processor temporarily disabled. 01689_ Beam Rifle temporarily disabled. 01689_ Signal Interpreter temporarily disabled. 01689_ System corrupted: Component data lost. 01697_ K-01 Serf collects debris. 01725_ Triggered Alarm Trap. 01725_ An alarm sounds. 01725_ ALERT: Alarm triggered, dispatching investigation squad. 01727_ Beam Rifle destroyed. 01729_ ALERT: Hostiles spotted, dispatching reinforcements to Terminal M002. 01730_ Imp. Ion Engine destroyed. 01733_ Imp. Treads destroyed. 01734_ S-10 Pest destroyed. 01737_ Imp. Treads destroyed. Map ----- +----------------------------------------------------+ | | | | | | | | | | | | | | | | | | | | | | | | | | | | | | | | | | | ?????????????????????????????????????????????????? | | ?????????????????????????????????????????????????? | | ?????????????????????????????????????????????????? | | ?????????????????????????????????????????????????? | | ?????????????????????????????????????????????????? | | ???????????????????????########??????????????????? | | ??????????????# ??????# #??????????????????? | | ????????????###g ##### #??????????????????? | | ????????? s @ #??????????????????? | | ????????? s sss Ys +??????????????????? | | ?????????? # ##### Y #??????????????????? | | ??????????????#????????# [* #??????????????????? | | ???????????????????#######/#####?????????????????? | | ?????????????? ????# u #?????????????????? | | ?????????????""" ??# """ """ #?????????????????? | | ????????? """ ?# """ """ #?????????????????? | | ?????????# """ ?# """ """ #?????????????????? | | ?????????# # #???????+ ??????? | | ?????????# ####/########???????# #?????? | | ?????????????""" #????????????# #?????? | | ???????????? """ #????????????# #?????? | | ?????????# """ #????????????# #?????? | | ?????????# #????????????# #?????? | | ?????????# #????????????# #?????? | | ?????????# ##????????????+ +?????? | | ?????????##+########## #?????????????# #?????? | | ?????????????????????# #?????????????# #?????? | | ?????????????????????# #?????????????# ####### | | ?????????????????????# #???????#+#??## # | | ?????????????????????# #???????# #??## # !!! | | ????????????????????## ##????### #### # !! | | ????????????????????# ######## ##### + !! | | ????????????????????# %= # | +----------------------------------------------------+ Best States ------------- Heat Dissipation 42 Energy Generation 12 Energy Capacity 265 Matter Stores 300 Matter Capacity 300 Sight Range 16 Terrain Scan Density 85 ECM Strength 1 Armor Coverage 150 Evasion (%) 55 Recoil Reduction 2 Item Schematics ----------------- ECM Suite | -9/Materials | Scanalyzed Beam Cannon | -9/Materials | Scanalyzed Robot Schematics ------------------ None Fabricated ------------ Nothing Alien Tech Used ----------------- None Achievements -------------- None Challenges ------------ None Game ------ Seed CoolingHellfireThruster Manual? 0 Play Time 00:22:35 Cumulative 8.2 hours Start 2024.07.30 @ 10:03:36 End 2024.07.30 @ 15:37:13 Sessions 3 Manual Loads 0 Difficulty Rogue Special Mode None Game No. 14 Rogue 10 Adventurer 4 Explorer 0 Win Type - Total 0 Types 0/0/0/0/0/0/0/0/0 Lore% 3 Gallery% 14 Achievement% 12 Wizard Run 0 Options --------- Layout 1 ASCII 0 Keyboard 0 Movement Mouse Keybinds 0 Fullscreen 2 Font 24/Smallcaps Map View 50x35 Zoom Use 0% Tactical HUD 1 Map Filters NONE Filters NONE Steam 1 RUN: 780c5672-b218-41a6-b35f-faaebb1c2e7f